fUSD/lending_fUSD_20260617
["ID","MTS","AMOUNT","RATE_DAILY","PERIOD"]
[425325487,1781696947000,-500.0,0.00014889,2]
[425325490,1781696947000,-500.0,0.00014889,2]
[425325489,1781696947000,-500.0,0.00014889,2]
[425325492,1781696947000,-500.0,0.00014889,2]
[425325491,1781696947000,-500.0,0.00014889,2]
[425325494,1781696947000,-160.0,0.00014889,2]
[425325493,1781696947000,-500.0,0.00014889,2]
[425325496,1781696947000,-216.17170803,0.00014894,2]
[425325495,1781696947000,-160.0,0.00014892,2]
[425325498,1781696947000,-151.0,0.00016067,2]
[425325509,1781696947000,-112.80556544,0.00016424,2]
[425325499,1781696947000,-151.0,0.00016093,2]
[425325497,1781696947000,-176.13448155,0.0001537,2]
[425325507,1781696947000,-600.0,0.00016378,2]
[425325505,1781696947000,-500.0,0.00016337,2]
[425325506,1781696947000,-206.28523898,0.00016338,2]
[425325508,1781696947000,-300.0,0.00016378,2]
[425325503,1781696947000,-500.0,0.00016337,2]
[425325500,1781696947000,-150.050408,0.00016227,2]
[425325502,1781696947000,-166.66,0.00016305,2]
[425325501,1781696947000,-420.0,0.00016298,2]
[425325504,1781696947000,-1107.71,0.00016337,2]
[425325512,1781696956000,-500.0,0.00016424,2]
[425325510,1781696956000,-387.19443456,0.00016424,2]
[425325513,1781696956000,-1562.7380078,0.00016425,2]
[425325511,1781696956000,-291.27771995,0.00016424,2]
[425325525,1781697032000,-101237.73652417,0.00016238,2]
[425325524,1781697032000,-394.68030262,0.00016238,2]
[425325522,1781697032000,-608.2201468,0.00016138,2]
[425325523,1781697032000,-336.5654864,0.00016238,2]
[425325526,1781697032000,-17781.82274688,0.00016238,2]
[425325527,1781697032000,-2108.94415124,0.00016238,2]
[425325528,1781697032000,-280.0,0.00016238,2]
[425325530,1781697032000,-914.86694548,0.00016238,2]
[425325531,1781697032000,-665.72995843,0.00016238,2]
[425325529,1781697032000,-46538.16598817,0.00016238,2]
[425325532,1781697032000,-23527.98638052,0.00016238,2]
[425325545,1781697037000,-500.0,0.00016438,2]
[425325537,1781697037000,-45003.46161609,0.00016238,2]
[425325538,1781697037000,-150.0,0.00016238,2]
[425325540,1781697037000,-151.0,0.00016238,2]
[425325539,1781697037000,-151.0,0.00016238,2]
[425325541,1781697037000,-500.0,0.00016337,2]
[425325544,1781697037000,-500.0,0.00016438,2]
[425325548,1781697037000,-500.0,0.00016438,2]
[425325546,1781697037000,-500.0,0.00016438,2]
[425325542,1781697037000,-3309.08636181,0.00016338,2]
[425325549,1781697037000,-500.0,0.00016438,2]
[425325543,1781697037000,-7354.82664596,0.00016425,2]
[425325551,1781697037000,-166.66,0.00016827,2]
[425325547,1781697037000,-500.0,0.00016438,2]
[425325550,1781697037000,-322.28,0.00016743,2]
[425325553,1781697037000,-511.24,0.000172,2]
[425325555,1781697037000,-152.57,0.000172,2]
[425325554,1781697037000,-838.68,0.000172,2]
[425325556,1781697037000,-200.0,0.000172,2]
[425325552,1781697037000,-200.08,0.000172,2]
[425325557,1781697037000,-209.87,0.000172,2]
[425325597,1781697038000,-187.22930134,0.000208,2]
[425325598,1781697038000,-1734.62772924,0.00020849,2]
[425325593,1781697038000,-1672.7364795,0.00020301,2]
[425325595,1781697038000,-187.22930134,0.000204,2]
[425325592,1781697038000,-212.0,0.0002,2]
[425325596,1781697038000,-187.22930134,0.000206,2]
[425325591,1781697038000,-375.0,0.0002,2]
[425325588,1781697038000,-157.16897091,0.0002,2]
[425325601,1781697038000,-187.22930134,0.00021,2]
[425325600,1781697038000,-258.75,0.00020951,2]
[425325599,1781697038000,-506.0,0.00020862,4]
[425325594,1781697038000,-277.10402258,0.000204,2]
[425325605,1781697038000,-212.0,0.00021,2]
[425325602,1781697038000,-268.0,0.00021,2]
[425325603,1781697038000,-375.0,0.00021,2]
[425325609,1781697038000,-200.74,0.000215,2]
[425325612,1781697038000,-500.0,0.00021815,2]
[425325607,1781697038000,-1798.80895522,0.00021397,2]
[425325604,1781697038000,-18134.33,0.00021,2]
[425325608,1781697038000,-838.68,0.000215,2]
[425325610,1781697038000,-150.99,0.00021757,2]
[425325611,1781697038000,-500.0,0.00021815,2]
[425325624,1781697038000,-151.0,0.00021945,2]
[425325614,1781697038000,-500.0,0.00021815,2]
[425325619,1781697038000,-506.0,0.00021815,5]
[425325590,1781697038000,-268.0,0.0002,2]
[425325606,1781697038000,-187.22930134,0.000212,2]
[425325589,1781697038000,-167.24871,0.0002,2]
[425325563,1781697038000,-449.6520718,0.00017258,2]
[425325576,1781697038000,-1500.0,0.00018657,2]
[425325615,1781697038000,-500.0,0.00021815,2]
[425325559,1781697038000,-281.93,0.000172,2]
[425325560,1781697038000,-200.74,0.000172,2]
[425325561,1781697038000,-4436.17,0.000172,2]
[425325562,1781697038000,-162.64,0.000172,2]
[425325564,1781697038000,-503.57,0.00017337,2]
[425325575,1781697038000,-245.29,0.0001857,2]
[425325574,1781697038000,-322.28,0.00018505,2]
[425325569,1781697038000,-506.0,0.00018,2]
[425325571,1781697038000,-329.7,0.00018179,2]
[425325567,1781697038000,-329.7,0.00017758,2]
[425325573,1781697038000,-329.7,0.00018503,2]
[425325565,1781697038000,-166.66,0.00017522,2]
[425325568,1781697038000,-317.76,0.00017989,2]
[425325566,1781697038000,-162.12,0.00017716,2]
[425325570,1781697038000,-608.22014675,0.00018034,2]
[425325572,1781697038000,-166.66,0.00018216,2]
[425325577,1781697038000,-166.66,0.0001891,2]
[425325587,1781697038000,-245.29,0.0001994,2]
[425325578,1781697038000,-506.0,0.00018954,2]
[425325579,1781697038000,-500.0,0.00019178,2]
[425325580,1781697038000,-1555.5,0.00019205,2]
[425325583,1781697038000,-200.74,0.0001935,2]
[425325582,1781697038000,-281.93,0.0001935,2]
[425325586,1781697038000,-506.0,0.00019908,3]
[425325584,1781697038000,-166.66,0.00019604,2]
[425325581,1781697038000,-838.68,0.0001935,2]
[425325585,1781697038000,-1613.0535,0.00019753,2]
[425325558,1781697038000,-887.26,0.000172,2]
[425325613,1781697038000,-500.0,0.00021815,2]
[425325625,1781697038000,-151.0,0.00021945,2]
[425325653,1781697038000,-151.0,0.00021945,2]
[425325658,1781697038000,-1882.56,0.00022,2]
[425325660,1781697038000,-520.9,0.00022466,2]
[425325652,1781697038000,-151.0,0.00021945,2]
[425325655,1781697038000,-399.0,0.00022,3]
[425325651,1781697038000,-151.0,0.00021945,2]
[425325649,1781697038000,-151.0,0.00021945,2]
[425325656,1781697038000,-268.0,0.00022,2]
[425325659,1781697038000,-212.0,0.00022,2]
[425325657,1781697038000,-375.0,0.00022,2]
[425325661,1781697038000,-1934.38338736,0.00022493,2]
[425325669,1781697038000,-150.0,0.00023014,2]
[425325670,1781697038000,-2005.9555727,0.00023041,2]
[425325666,1781697038000,-268.0,0.00023,2]
[425325662,1781697038000,-8734.6,0.00022538,2]
[425325672,1781697038000,-500.0,0.00023499,2]
[425325667,1781697038000,-375.0,0.00023,2]
[425325668,1781697038000,-212.0,0.00023,2]
[425325671,1781697038000,-150.0,0.00023288,2]
[425325665,1781697038000,-500.0,0.00022795,2]
[425325663,1781697038000,-4183.0044,0.00022669,2]
[425325664,1781697038000,-506.0,0.00022769,6]
[425325673,1781697038000,-358.593908,0.0002352,120]
[425325674,1781697038000,-183.764802,0.0002352,14]
[425325676,1781697038000,-838.68,0.0002365,2]
[425325677,1781697038000,-200.74,0.0002365,2]
[425325621,1781697038000,-5000.0,0.00021918,2]
[425325654,1781697038000,-151.0,0.00021945,2]
[425325650,1781697038000,-151.0,0.00021945,2]
[425325675,1781697038000,-2080.17592889,0.00023589,2]
[425325646,1781697038000,-151.0,0.00021945,2]
[425325640,1781697038000,-151.0,0.00021945,2]
[425325616,1781697038000,-500.0,0.00021815,2]
[425325618,1781697038000,-321.78488955,0.00021815,2]
[425325617,1781697038000,-500.0,0.00021815,2]
[425325620,1781697038000,-152.05845059,0.00021816,2]
[425325623,1781697038000,-150.0,0.00021918,2]
[425325626,1781697038000,-151.0,0.00021945,2]
[425325630,1781697038000,-500.0,0.00021945,2]
[425325628,1781697038000,-151.0,0.00021945,2]
[425325629,1781697038000,-151.0,0.00021945,2]
[425325636,1781697038000,-151.0,0.00021945,2]
[425325634,1781697038000,-151.0,0.00021945,2]
[425325632,1781697038000,-151.0,0.00021945,2]
[425325622,1781697038000,-150.0,0.00021918,2]
[425325633,1781697038000,-541.42570191,0.00021945,2]
[425325645,1781697038000,-151.0,0.00021945,2]
[425325643,1781697038000,-151.0,0.00021945,2]
[425325641,1781697038000,-151.0,0.00021945,2]
[425325644,1781697038000,-151.0,0.00021945,2]
[425325631,1781697038000,-151.0,0.00021945,2]
[425325642,1781697038000,-151.0,0.00021945,2]
[425325639,1781697038000,-151.0,0.00021945,2]
[425325648,1781697038000,-151.0,0.00021945,2]
[425325638,1781697038000,-151.0,0.00021945,2]
[425325627,1781697038000,-151.0,0.00021945,2]
[425325637,1781697038000,-151.0,0.00021945,2]
[425325635,1781697038000,-1865.36488656,0.00021945,2]
[425325647,1781697038000,-151.0,0.00021945,2]
[425325715,1781697039000,-500.0,0.00024,7]
[425325711,1781697039000,-500.0,0.00024,7]
[425325716,1781697039000,-500.0,0.00024,7]
[425325713,1781697039000,-500.0,0.00024,7]
[425325706,1781697039000,-500.0,0.00024,7]
[425325712,1781697039000,-500.0,0.00024,7]
[425325709,1781697039000,-500.0,0.00024,7]
[425325721,1781697039000,-500.0,0.00024,7]
[425325720,1781697039000,-212.0,0.00024,2]
[425325710,1781697039000,-500.0,0.00024,7]
[425325714,1781697039000,-500.0,0.00024,7]
[425325717,1781697039000,-500.0,0.00024,7]
[425325728,1781697039000,-3807.35,0.00024076,7]
[425325718,1781697039000,-500.0,0.00024,7]
[425325722,1781697039000,-500.0,0.00024,7]
[425325724,1781697039000,-500.0,0.00024,7]
[425325725,1781697039000,-500.0,0.00024,7]
[425325733,1781697039000,-336.247341,0.00024191,120]
[425325723,1781697039000,-500.0,0.00024,7]
[425325732,1781697039000,-11605.13,0.00024174,2]
[425325726,1781697039000,-500.0,0.00024,7]
[425325729,1781697039000,-455.78,0.0002411,2]
[425325727,1781697039000,-500.0,0.00024,7]
[425325731,1781697039000,-150.0,0.00024164,2]
[425325703,1781697039000,-500.0,0.00024,7]
[425325719,1781697039000,-500.0,0.00024,7]
[425325705,1781697039000,-500.0,0.00024,7]
[425325687,1781697039000,-500.0,0.00024,7]
[425325708,1781697039000,-500.0,0.00024,7]
[425325730,1781697039000,-2157.14243826,0.00024137,2]
[425325678,1781697039000,-152.05845054,0.00023713,2]
[425325679,1781697039000,-506.0,0.00023723,7]
[425325680,1781697039000,-728.8006096,0.000239,2]
[425325684,1781697039000,-375.0,0.00024,2]
[425325683,1781697039000,-500.0,0.00024,7]
[425325682,1781697039000,-500.0,0.00024,7]
[425325681,1781697039000,-268.0,0.00024,2]
[425325686,1781697039000,-500.0,0.00024,7]
[425325696,1781697039000,-500.0,0.00024,7]
[425325685,1781697039000,-500.0,0.00024,7]
[425325694,1781697039000,-500.0,0.00024,7]
[425325699,1781697039000,-500.0,0.00024,7]
[425325688,1781697039000,-500.0,0.00024,7]
[425325689,1781697039000,-500.0,0.00024,7]
[425325690,1781697039000,-500.0,0.00024,7]
[425325691,1781697039000,-500.0,0.00024,7]
[425325695,1781697039000,-500.0,0.00024,7]
[425325692,1781697039000,-500.0,0.00024,7]
[425325697,1781697039000,-500.0,0.00024,7]
[425325698,1781697039000,-500.0,0.00024,7]
[425325702,1781697039000,-500.0,0.00024,7]
[425325704,1781697039000,-500.0,0.00024,7]
[425325700,1781697039000,-500.0,0.00024,7]
[425325701,1781697039000,-500.0,0.00024,7]
[425325707,1781697039000,-500.0,0.00024,7]
[425325693,1781697039000,-500.0,0.00024,7]
[425325735,1781697039000,-257.79,0.00024501,2]
[425325748,1781697039000,-45.02727716,0.00025,14]
[425325738,1781697039000,-496.5,0.00024658,2]
[425325783,1781697039000,-388.79,0.00026257,7]
[425325773,1781697039000,-506.0,0.00025631,9]
[425325782,1781697039000,-496.5,0.00026257,7]
[425325777,1781697039000,-301.99862481,0.000258,30]
[425325774,1781697039000,-11605.13,0.00025786,2]
[425325776,1781697039000,-194.50137519,0.000258,30]
[425325781,1781697039000,-388.79,0.00026029,2]
[425325779,1781697039000,-325.56,0.00026027,7]
[425325778,1781697039000,-388.79,0.000258,30]
[425325775,1781697039000,-200.74,0.000258,120]
[425325780,1781697039000,-496.5,0.00026029,2]
[425325786,1781697039000,-150.0,0.00026542,5]
[425325784,1781697039000,-496.5,0.00026486,30]
[425325794,1781697039000,-540.57990238,0.0002726,2]
[425325787,1781697039000,-506.0,0.00026585,10]
[425325795,1781697039000,-501.47400689,0.00027397,2]
[425325793,1781697039000,-152.0,0.00027244,3]
[425325785,1781697039000,-388.79,0.00026486,30]
[425325789,1781697039000,-179.296954,0.00026849,120]
[425325790,1781697039000,-6079.0,0.00026893,2]
[425325788,1781697039000,-150.0,0.00026641,2]
[425325791,1781697039000,-419.0,0.00026893,2]
[425325792,1781697039000,-152.81596174,0.00026996,7]
[425325797,1781697039000,-423.36678961,0.00027397,2]
[425325734,1781697039000,-350.0,0.00024384,5]
[425325763,1781697039000,-168.123671,0.0002527,14]
[425325765,1781697039000,-496.5,0.00025343,2]
[425325796,1781697039000,-1500.0,0.00027397,2]
[425325772,1781697039000,-152.05845054,0.00025611,2]
[425325736,1781697039000,-921.73,0.00024653,7]
[425325739,1781697039000,-388.79,0.00024658,2]
[425325737,1781697039000,-1000.0,0.00024658,2]
[425325742,1781697039000,-975.89140967,0.00024685,2]
[425325741,1781697039000,-1261.0652988,0.00024685,2]
[425325740,1781697039000,-506.0,0.00024677,8]
[425325753,1781697039000,-222.0,0.00025,2]
[425325766,1781697039000,-388.79,0.00025343,2]
[425325755,1781697039000,-175.99,0.00025,2]
[425325743,1781697039000,-496.5,0.00024886,7]
[425325756,1781697039000,-203.220419,0.00025061,120]
[425325747,1781697039000,-104.97272284,0.00025,14]
[425325752,1781697039000,-380.0,0.00025,2]
[425325744,1781697039000,-111.87859033,0.00024886,7]
[425325746,1781697039000,-728.80060957,0.00024933,2]
[425325767,1781697039000,-150.0,0.00025373,2]
[425325798,1781697039000,-381.45347744,0.00027397,2]
[425325768,1781697039000,-236.884315,0.00025508,14]
[425325764,1781697039000,-179.296955,0.00025284,14]
[425325770,1781697039000,-496.5,0.00025572,7]
[425325771,1781697039000,-388.79,0.00025572,7]
[425325759,1781697039000,-388.79,0.00025115,30]
[425325761,1781697039000,-2249.15435462,0.00025233,2]
[425325750,1781697039000,-277.0,0.00025,2]
[425325758,1781697039000,-496.5,0.00025115,30]
[425325745,1781697039000,-276.91140967,0.00024886,7]
[425325769,1781697039000,-168.12367,0.00025508,120]
[425325837,1781697040000,-152.0,0.00028171,2]
[425325834,1781697040000,-152.0,0.00028171,2]
[425325835,1781697040000,-152.0,0.00028171,2]
[425325836,1781697040000,-152.0,0.00028171,2]
[425325824,1781697040000,-500.0,0.00028171,2]
[425325832,1781697040000,-152.0,0.00028171,2]
[425325827,1781697040000,-152.0,0.00028171,2]
[425325825,1781697040000,-152.0,0.00028171,2]
[425325828,1781697040000,-500.0,0.00028171,2]
[425325833,1781697040000,-152.0,0.00028171,2]
[425325841,1781697040000,-219.97239488,0.00028276,7]
[425325850,1781697040000,-151.0,0.00028336,2]
[425325838,1781697040000,-156.80870372,0.00028171,2]
[425325843,1781697040000,-215.23454351,0.00028276,7]
[425325839,1781697040000,-151.0,0.00028226,2]
[425325840,1781697040000,-156.80870372,0.00028226,2]
[425325845,1781697040000,-233.07518347,0.00028276,7]
[425325844,1781697040000,-182.96454116,0.00028276,7]
[425325846,1781697040000,-197.14746822,0.00028276,2]
[425325849,1781697040000,-156.80870372,0.00028281,2]
[425325847,1781697040000,-305.63192348,0.00028276,7]
[425325851,1781697040000,-156.80870379,0.00028336,2]
[425325848,1781697040000,-151.0,0.00028281,2]
[425325830,1781697040000,-152.0,0.00028171,2]
[425325842,1781697040000,-218.37671174,0.00028276,7]
[425325829,1781697040000,-500.0,0.00028171,2]
[425325812,1781697040000,-646.65982734,0.00028171,2]
[425325820,1781697040000,-500.0,0.00028171,2]
[425325853,1781697040000,-151.0,0.00028446,2]
[425325799,1781697040000,-343.68958318,0.00027397,2]
[425325806,1781697040000,-174.61919141,0.00028171,2]
[425325802,1781697040000,-506.0,0.00027538,10]
[425325804,1781697040000,-841.0,0.00027646,10]
[425325800,1781697040000,-1137.37,0.000274,2]
[425325803,1781697040000,-150.0,0.00027604,5]
[425325801,1781697040000,-152.05845054,0.00027508,2]
[425325805,1781697040000,-150.0,0.00027973,2]
[425325807,1781697040000,-151.0,0.00028171,2]
[425325814,1781697040000,-151.0,0.00028171,2]
[425325819,1781697040000,-152.0,0.00028171,2]
[425325811,1781697040000,-500.0,0.00028171,2]
[425325813,1781697040000,-203.56087746,0.00028171,2]
[425325818,1781697040000,-500.0,0.00028171,2]
[425325809,1781697040000,-578.20924308,0.00028171,2]
[425325815,1781697040000,-500.0,0.00028171,2]
[425325808,1781697040000,-500.0,0.00028171,2]
[425325810,1781697040000,-500.0,0.00028171,2]
[425325817,1781697040000,-500.0,0.00028171,2]
[425325816,1781697040000,-500.0,0.00028171,2]
[425325821,1781697040000,-500.0,0.00028171,2]
[425325831,1781697040000,-152.0,0.00028171,2]
[425325822,1781697040000,-152.0,0.00028171,2]
[425325823,1781697040000,-500.0,0.00028171,2]
[425325826,1781697040000,-500.0,0.00028171,2]
[425325852,1781697040000,-151.0,0.00028391,2]
[425325854,1781697040000,-2500.0,0.00028448,2]
[425325896,1781697040000,-592.27,0.00028726,7]
[425325886,1781697040000,-592.27,0.00028726,7]
[425325881,1781697040000,-592.27,0.00028726,7]
[425325888,1781697040000,-592.27,0.00028726,7]
[425325887,1781697040000,-592.27,0.00028726,7]
[425325894,1781697040000,-592.27,0.00028726,7]
[425325892,1781697040000,-592.27,0.00028726,7]
[425325893,1781697040000,-592.27,0.00028726,7]
[425325890,1781697040000,-592.27,0.00028726,7]
[425325889,1781697040000,-592.27,0.00028726,7]
[425325895,1781697040000,-592.27,0.00028726,7]
[425325898,1781697040000,-592.27,0.00028726,7]
[425325908,1781697040000,-3283.14,0.00028742,30]
[425325907,1781697040000,-473.24,0.00028739,2]
[425325906,1781697040000,-592.27,0.00028726,7]
[425325903,1781697040000,-592.27,0.00028726,7]
[425325897,1781697040000,-592.27,0.00028726,7]
[425325901,1781697040000,-592.27,0.00028726,7]
[425325905,1781697040000,-592.27,0.00028726,7]
[425325900,1781697040000,-592.27,0.00028726,7]
[425325899,1781697040000,-592.27,0.00028726,7]
[425325902,1781697040000,-592.27,0.00028726,7]
[425325904,1781697040000,-592.27,0.00028726,7]
[425325909,1781697040000,-401.99,0.00028749,2]
[425325855,1781697040000,-506.0,0.00028492,11]
[425325910,1781697040000,-3040.17,0.0002875,30]
[425325883,1781697040000,-592.27,0.00028726,7]
[425325878,1781697040000,-181.08010149,0.00028719,2]
[425325891,1781697040000,-592.27,0.00028726,7]
[425325885,1781697040000,-592.27,0.00028726,7]
[425325859,1781697040000,-151.0,0.00028611,2]
[425325857,1781697040000,-64757.0,0.00028548,2]
[425325856,1781697040000,-151.0,0.00028501,2]
[425325866,1781697040000,-3040.17,0.00028666,7]
[425325858,1781697040000,-151.0,0.00028556,2]
[425325860,1781697040000,-3283.14,0.00028613,30]
[425325861,1781697040000,-3040.17,0.00028625,30]
[425325862,1781697040000,-1137.36,0.00028625,30]
[425325879,1781697040000,-151.0,0.00028721,2]
[425325864,1781697040000,-3283.14,0.00028656,7]
[425325865,1781697040000,-473.24,0.00028665,30]
[425325868,1781697040000,-151.0,0.00028666,2]
[425325867,1781697040000,-1137.36,0.00028666,7]
[425325863,1781697040000,-1315.69,0.00028638,30]
[425325869,1781697040000,-500.0,0.00028677,2]
[425325882,1781697040000,-592.27,0.00028726,7]
[425325871,1781697040000,-401.99,0.00028678,30]
[425325880,1781697040000,-592.5,0.00028726,7]
[425325877,1781697040000,-1315.69,0.00028718,2]
[425325876,1781697040000,-401.99,0.00028713,7]
[425325884,1781697040000,-592.27,0.00028726,7]
[425325875,1781697040000,-1137.36,0.00028708,2]
[425325872,1781697040000,-3283.14,0.00028699,2]
[425325874,1781697040000,-3040.17,0.00028708,2]
[425325870,1781697040000,-1315.69,0.00028678,7]
[425325873,1781697040000,-473.24,0.00028702,7]
[425325950,1781697041000,-221.41,0.00028922,7]
[425325951,1781697041000,-473.24,0.00028925,7]
[425325953,1781697041000,-211.53,0.00028931,7]
[425325952,1781697041000,-401.99,0.00028928,7]
[425325948,1781697041000,-3902.46,0.00028919,7]
[425325944,1781697041000,-3283.14,0.00028914,7]
[425325946,1781697041000,-1137.36,0.00028916,7]
[425325940,1781697041000,-473.24,0.00028888,30]
[425325945,1781697041000,-3040.17,0.00028916,7]
[425325939,1781697041000,-151.0,0.00028886,2]
[425325949,1781697041000,-302.49820449,0.0002892,20]
[425325947,1781697041000,-1315.69,0.00028919,7]
[425325954,1781697041000,-168.0,0.00028931,5]
[425325977,1781697041000,-727.44154341,0.00028973,2]
[425325958,1781697041000,-1137.36,0.00028958,2]
[425325955,1781697041000,-152.0,0.00028941,4]
[425325960,1781697041000,-153.0,0.00028959,30]
[425325962,1781697041000,-212.0,0.00028959,30]
[425325956,1781697041000,-3283.14,0.00028957,2]
[425325957,1781697041000,-3040.17,0.00028958,2]
[425325959,1781697041000,-375.0,0.00028959,30]
[425325964,1781697041000,-1315.69,0.00028959,2]
[425325963,1781697041000,-155.0,0.00028959,30]
[425325965,1781697041000,-3902.46,0.00028959,2]
[425325967,1781697041000,-158.0,0.00028962,30]
[425325941,1781697041000,-401.99,0.00028892,30]
[425325961,1781697041000,-153.0,0.00028959,30]
[425325943,1781697041000,-2000.0,0.000289,2]
[425325911,1781697041000,-1137.36,0.0002875,30]
[425325937,1781697041000,-1315.69,0.00028879,30]
[425325913,1781697041000,-501.47400689,0.00028766,2]
[425325912,1781697041000,-1315.69,0.00028758,30]
[425325916,1781697041000,-401.99,0.00028785,30]
[425325914,1781697041000,-473.24,0.00028776,30]
[425325920,1781697041000,-1315.69,0.00028798,7]
[425325918,1781697041000,-3040.17,0.00028791,7]
[425325917,1781697041000,-3283.14,0.00028785,7]
[425325915,1781697041000,-151.0,0.00028776,2]
[425325919,1781697041000,-1137.36,0.00028791,7]
[425325926,1781697041000,-151.0,0.00028831,2]
[425325922,1781697041000,-221.41,0.00028806,7]
[425325932,1781697041000,-401.99,0.00028856,2]
[425325938,1781697041000,-221.41,0.00028884,30]
[425325923,1781697041000,-473.24,0.00028813,7]
[425325921,1781697041000,-200.0,0.000288,2]
[425325929,1781697041000,-1315.69,0.00028839,2]
[425325927,1781697041000,-3040.17,0.00028833,2]
[425325928,1781697041000,-1137.36,0.00028833,2]
[425325931,1781697041000,-473.24,0.00028851,2]
[425325924,1781697041000,-401.99,0.00028821,7]
[425325930,1781697041000,-221.41,0.00028845,2]
[425325934,1781697041000,-3283.14,0.00028871,30]
[425325933,1781697041000,-161.98358862,0.00028861,2]
[425325935,1781697041000,-3040.17,0.00028875,30]
[425325942,1781697041000,-459.0,0.000289,2]
[425325936,1781697041000,-1137.36,0.00028875,30]
[425325925,1781697041000,-3283.14,0.00028828,2]
[425325968,1781697041000,-473.24,0.00028962,2]
[425325971,1781697041000,-155.0,0.00028963,30]
[425325966,1781697041000,-221.41,0.00028961,2]
[425325997,1781697041000,-259.19,0.00029002,7]
[425326005,1781697041000,-259.19,0.00029002,2]
[425326003,1781697041000,-259.19,0.00029002,7]
[425326007,1781697041000,-259.19,0.00029002,30]
[425326006,1781697041000,-259.19,0.00029002,7]
[425326012,1781697041000,-259.19,0.00029002,7]
[425326013,1781697041000,-259.19,0.00029002,30]
[425326009,1781697041000,-259.19,0.00029002,7]
[425326011,1781697041000,-259.19,0.00029002,2]
[425326004,1781697041000,-259.19,0.00029002,30]
[425326010,1781697041000,-259.19,0.00029002,30]
[425326008,1781697041000,-259.19,0.00029002,2]
[425326014,1781697041000,-259.19,0.00029002,2]
[425326016,1781697041000,-331.0,0.0002902,2]
[425326015,1781697041000,-259.28,0.00029002,7]
[425326019,1781697041000,-331.0,0.0002902,2]
[425326018,1781697041000,-331.0,0.0002902,30]
[425326026,1781697041000,-331.0,0.0002902,7]
[425326017,1781697041000,-331.0,0.0002902,7]
[425326025,1781697041000,-331.0,0.0002902,2]
[425326020,1781697041000,-331.0,0.0002902,7]
[425326021,1781697041000,-331.0,0.0002902,30]
[425326024,1781697041000,-331.0,0.0002902,30]
[425326023,1781697041000,-331.0,0.0002902,7]
[425326027,1781697041000,-331.0,0.0002902,30]
[425325995,1781697041000,-473.26,0.00029,30]
[425325994,1781697041000,-200.0,0.00029,2]
[425326022,1781697041000,-331.0,0.0002902,2]
[425325996,1781697041000,-259.19,0.00029002,2]
[425325999,1781697041000,-259.19,0.00029002,2]
[425325972,1781697041000,-268.0,0.00028963,30]
[425325970,1781697041000,-151.0,0.00028963,30]
[425325969,1781697041000,-155.0,0.00028963,30]
[425325974,1781697041000,-211.53,0.00028965,2]
[425325976,1781697041000,-1388.90986809,0.00028973,2]